[Event "Early-Titled-Tuesday-Blitz-January-16-2024"]
[Site "Chess.com"]
[Date "2024.01.16"]
[Round "9"]
[White "francyIM"]
[Black "tptagain"]
[Result "1/2-1/2"]
[WhiteElo "2846"]
[BlackElo "2954"]
[TimeControl "180+1"]
[EndTime "9:50:16 PST"]
[Termination "Game drawn by repetition"]

1. d4 {[%clk 0:03:00.9]} 1... d5 {[%clk 0:02:59.6]} 2. c4 {[%clk 0:02:55.9]}
2... e6 {[%clk 0:02:59.7]} 3. Nc3 {[%clk 0:02:54.2]} 3... Bb4 {[%clk 0:02:59.4]}
4. a3 {[%clk 0:02:49.3]} 4... Bxc3+ {[%clk 0:02:59]} 5. bxc3 {[%clk 0:02:50.2]}
5... Nf6 {[%clk 0:02:59.4]} 6. f3 {[%clk 0:02:49.5]} 6... O-O {[%clk 0:02:46]}
7. e3 {[%clk 0:02:47.6]} 7... c6 {[%clk 0:02:42.5]} 8. Bd3 {[%clk 0:02:46.3]}
8... b6 {[%clk 0:02:42]} 9. e4 {[%clk 0:02:42.6]} 9... Ba6 {[%clk 0:02:35.7]}
10. e5 {[%clk 0:02:38.3]} 10... Nfd7 {[%clk 0:02:33.2]} 11. f4 {[%clk
0:02:37.2]} 11... Bxc4 {[%clk 0:02:31.7]} 12. Bxc4 {[%clk 0:02:30.4]} 12... dxc4
{[%clk 0:02:31.7]} 13. Nf3 {[%clk 0:02:30.3]} 13... b5 {[%clk 0:02:16.8]} 14.
Qc2 {[%clk 0:02:25.9]} 14... f5 {[%clk 0:02:12.8]} 15. exf6 {[%clk 0:02:25.4]}
15... Qxf6 {[%clk 0:02:10.1]} 16. O-O {[%clk 0:02:23.1]} 16... Qf5 {[%clk
0:02:08.1]} 17. Qe2 {[%clk 0:02:21.8]} 17... Nb6 {[%clk 0:02:07]} 18. Ne5 {[%clk
0:02:18.5]} 18... Qf6 {[%clk 0:01:42.4]} 19. Bd2 {[%clk 0:02:15.5]} 19... N8d7
{[%clk 0:01:38.6]} 20. Nxc6 {[%clk 0:02:13.9]} 20... Rfc8 {[%clk 0:01:27.2]} 21.
Ne5 {[%clk 0:01:56.5]} 21... Nxe5 {[%clk 0:01:27.4]} 22. dxe5 {[%clk 0:01:56.4]}
22... Qg6 {[%clk 0:01:25.5]} 23. Be3 {[%clk 0:01:55.6]} 23... Nd5 {[%clk
0:01:25.3]} 24. Bd4 {[%clk 0:01:55.5]} 24... Rf8 {[%clk 0:01:24.7]} 25. Qd2
{[%clk 0:01:51.5]} 25... h5 {[%clk 0:01:09.3]} 26. Rf3 {[%clk 0:01:50.6]} 26...
a6 {[%clk 0:00:59]} 27. a4 {[%clk 0:01:40.5]} 27... Rad8 {[%clk 0:00:44.8]} 28.
Raf1 {[%clk 0:01:36]} 28... Rf5 {[%clk 0:00:39.1]} 29. Kh1 {[%clk 0:01:33.5]}
29... Rdf8 {[%clk 0:00:34]} 30. g3 {[%clk 0:01:32.4]} 30... Qg4 {[%clk
0:00:32.3]} 31. Qg2 {[%clk 0:01:30.9]} 31... bxa4 {[%clk 0:00:26.4]} 32. h3
{[%clk 0:01:27.8]} 32... Qg6 {[%clk 0:00:26.2]} 33. Qa2 {[%clk 0:01:28.1]} 33...
h4 {[%clk 0:00:24.9]} 34. Rg1 {[%clk 0:01:19.3]} 34... R8f7 {[%clk 0:00:23.3]}
35. Qxc4 {[%clk 0:01:16.3]} 35... Kh7 {[%clk 0:00:20.5]} 36. Qxa6 {[%clk
0:01:14.5]} 36... hxg3 {[%clk 0:00:18.6]} 37. Rfxg3 {[%clk 0:01:14.6]} 37... Qh6
{[%clk 0:00:19.3]} 38. Qxa4 {[%clk 0:01:11.7]} 38... Rh5 {[%clk 0:00:19.3]} 39.
Qc2+ {[%clk 0:01:09.6]} 39... Kh8 {[%clk 0:00:19]} 40. R1g2 {[%clk 0:00:34.5]}
40... Rxf4 {[%clk 0:00:17.6]} 41. Kh2 {[%clk 0:00:31.7]} 41... Rfh4 {[%clk
0:00:17.7]} 42. Kg1 {[%clk 0:00:24]} 42... Rxh3 {[%clk 0:00:17.7]} 43. Rxh3
{[%clk 0:00:24.5]} 43... Rxh3 {[%clk 0:00:18]} 44. Rh2 {[%clk 0:00:24.9]} 44...
Kg8 {[%clk 0:00:14.3]} 45. Rxh3 {[%clk 0:00:22.9]} 45... Qxh3 {[%clk 0:00:15.2]}
46. Qg2 {[%clk 0:00:23.2]} 46... Qf5 {[%clk 0:00:13.3]} 47. Kh2 {[%clk
0:00:20.7]} 47... Nf4 {[%clk 0:00:13.1]} 48. Qf3 {[%clk 0:00:20.9]} 48... Qc2+
{[%clk 0:00:11.7]} 49. Qf2 {[%clk 0:00:21.4]} 49... Qe4 {[%clk 0:00:11.4]} 50.
Kg3 {[%clk 0:00:22]} 50... Nd5 {[%clk 0:00:09.8]} 51. Qf3 {[%clk 0:00:22.4]}
51... Qg6+ {[%clk 0:00:09.9]} 52. Qg4 {[%clk 0:00:22.8]} 52... Qd3+ {[%clk
0:00:09.6]} 53. Qf3 {[%clk 0:00:23.1]} 53... Qd2 {[%clk 0:00:09.7]} 54. Qg4
{[%clk 0:00:22.3]} 54... Qe1+ {[%clk 0:00:09.8]} 55. Kh2 {[%clk 0:00:21.9]}
55... Qd2+ {[%clk 0:00:07.9]} 56. Kg3 {[%clk 0:00:22]} 56... Qh6 {[%clk
0:00:08.3]} 57. Qh4 {[%clk 0:00:21]} 57... Qg6+ {[%clk 0:00:08.4]} 58. Qg4
{[%clk 0:00:21.8]} 58... Qf7 {[%clk 0:00:08.8]} 59. Qf3 {[%clk 0:00:21.8]} 59...
Qd7 {[%clk 0:00:08.5]} 60. Kf2 {[%clk 0:00:22.2]} 60... Ne7 {[%clk 0:00:09]} 61.
Ke3 {[%clk 0:00:22]} 61... Nf5+ {[%clk 0:00:09.5]} 62. Kd3 {[%clk 0:00:22.5]}
62... Qb5+ {[%clk 0:00:10]} 63. Kc2 {[%clk 0:00:23]} 63... Qc4 {[%clk
0:00:10.2]} 64. Qd3 {[%clk 0:00:23.2]} 64... Qa2+ {[%clk 0:00:09.7]} 65. Kd1
{[%clk 0:00:23.1]} 65... Kf7 {[%clk 0:00:09.5]} 66. Qf3 {[%clk 0:00:21.2]} 66...
g5 {[%clk 0:00:09.4]} 67. Qh5+ {[%clk 0:00:21.3]} 67... Kf8 {[%clk 0:00:09.8]}
68. Bc5+ {[%clk 0:00:21.3]} 68... Kg7 {[%clk 0:00:07.7]} 69. Qxg5+ {[%clk
0:00:21.5]} 69... Kh7 {[%clk 0:00:08.3]} 70. Qh5+ {[%clk 0:00:22.1]} 70... Kg7
{[%clk 0:00:08.8]} 71. Qg5+ {[%clk 0:00:22.4]} 71... Kh7 {[%clk 0:00:09.4]} 72.
Bf8 {[%clk 0:00:21.8]} 72... Qb3+ {[%clk 0:00:07.9]} 73. Kd2 {[%clk 0:00:21.2]}
73... Qb2+ {[%clk 0:00:08.2]} 74. Kd3 {[%clk 0:00:21.1]} 74... Qb1+ {[%clk
0:00:08.6]} 75. Kd2 {[%clk 0:00:18.1]} 75... Qa2+ {[%clk 0:00:08.7]} 76. Ke1
{[%clk 0:00:16.8]} 76... Qb1+ {[%clk 0:00:07.9]} 77. Kf2 {[%clk 0:00:16.9]}
77... Qc2+ {[%clk 0:00:08.2]} 78. Kg1 {[%clk 0:00:12]} 78... Qd1+ {[%clk
0:00:07.4]} 79. Kh2 {[%clk 0:00:12.2]} 79... Qc2+ {[%clk 0:00:06.7]} 80. Qg2
{[%clk 0:00:11.6]} 80... Qxc3 {[%clk 0:00:06.8]} 81. Qh3+ {[%clk 0:00:11.2]}
81... Qxh3+ {[%clk 0:00:06.5]} 82. Kxh3 {[%clk 0:00:12.1]} 82... Kg8 {[%clk
0:00:06.8]} 83. Bc5 {[%clk 0:00:11.1]} 83... Kf7 {[%clk 0:00:07.5]} 84. Kg4
{[%clk 0:00:10.3]} 84... Kg6 {[%clk 0:00:07.8]} 85. Kf4 {[%clk 0:00:09.5]} 85...
Ng7 {[%clk 0:00:07.2]} 86. Kg4 {[%clk 0:00:09.1]} 86... Nf5 {[%clk 0:00:06.1]}
87. Kf4 {[%clk 0:00:09.5]} 87... Ng7 {[%clk 0:00:06.4]} 88. Kg4 {[%clk
0:00:10.1]} 88... Nf5 {[%clk 0:00:07.3]} 1/2-1/2

[Event "Early-Titled-Tuesday-Blitz-January-16-2024"]
[Site "Chess.com"]
[Date "2024.01.16"]
[Round "9"]
[White "AlexandraSamaganova"]
[Black "agvega14"]
[Result "1-0"]
[WhiteElo "2297"]
[BlackElo "2134"]
[TimeControl "180+1"]
[EndTime "9:50:16 PST"]
[Termination "AlexandraSamaganova won on time"]

1. c4 {[%clk 0:03:00.9]} 1... e5 {[%clk 0:02:57.3]} 2. Nc3 {[%clk 0:02:57.4]}
2... Nc6 {[%clk 0:02:56]} 3. g3 {[%clk 0:02:53.2]} 3... Bc5 {[%clk 0:02:55.6]}
4. Bg2 {[%clk 0:02:50.5]} 4... d6 {[%clk 0:02:55.5]} 5. e3 {[%clk 0:02:50.5]}
5... h5 {[%clk 0:02:54.5]} 6. h3 {[%clk 0:02:45]} 6... a6 {[%clk 0:02:54.4]} 7.
Nge2 {[%clk 0:02:36.3]} 7... Ba7 {[%clk 0:02:54.6]} 8. d4 {[%clk 0:02:33.3]}
8... Nf6 {[%clk 0:02:21.6]} 9. b3 {[%clk 0:02:27.3]} 9... Rb8 {[%clk 0:02:13]}
10. Bb2 {[%clk 0:02:25.6]} 10... O-O {[%clk 0:02:01.5]} 11. O-O {[%clk
0:02:22.3]} 11... Re8 {[%clk 0:01:56.2]} 12. Kh2 {[%clk 0:02:16.6]} 12... Bf5
{[%clk 0:01:46.9]} 13. d5 {[%clk 0:02:04.2]} 13... Ne7 {[%clk 0:01:40.6]} 14. e4
{[%clk 0:02:03.9]} 14... Bd7 {[%clk 0:01:39.6]} 15. f4 {[%clk 0:02:02.3]} 15...
Ng6 {[%clk 0:01:35]} 16. f5 {[%clk 0:01:58.3]} 16... Nf8 {[%clk 0:01:34.2]} 17.
Bc1 {[%clk 0:01:49.5]} 17... b5 {[%clk 0:01:31.6]} 18. cxb5 {[%clk 0:01:46]}
18... axb5 {[%clk 0:01:31.2]} 19. b4 {[%clk 0:01:42.2]} 19... c6 {[%clk
0:01:09.7]} 20. Qd3 {[%clk 0:01:30]} 20... N8h7 {[%clk 0:01:06]} 21. Rd1 {[%clk
0:01:26.2]} 21... c5 {[%clk 0:00:55.2]} 22. a3 {[%clk 0:01:04.7]} 22... c4
{[%clk 0:00:54.5]} 23. Qc2 {[%clk 0:01:05]} 23... Qb6 {[%clk 0:00:49.4]} 24. Rf1
{[%clk 0:00:57.7]} 24... Qc7 {[%clk 0:00:46.1]} 25. Rf3 {[%clk 0:00:51.9]} 25...
Rec8 {[%clk 0:00:45.1]} 26. Be3 {[%clk 0:00:51.5]} 26... Bxe3 {[%clk 0:00:44.5]}
27. Rxe3 {[%clk 0:00:49.4]} 27... Qb6 {[%clk 0:00:39.8]} 28. Rf3 {[%clk
0:00:49.6]} 28... Ng5 {[%clk 0:00:39.6]} 29. Rff1 {[%clk 0:00:48.8]} 29... Qe3
{[%clk 0:00:36]} 30. Qc1 {[%clk 0:00:42.5]} 30... Qxc1 {[%clk 0:00:35.1]} 31.
Raxc1 {[%clk 0:00:42.1]} 31... Ra8 {[%clk 0:00:36]} 32. Ra1 {[%clk 0:00:37.9]}
32... Ra7 {[%clk 0:00:34.9]} 33. h4 {[%clk 0:00:37.8]} 33... Ng4+ {[%clk
0:00:32.3]} 34. Kg1 {[%clk 0:00:34.7]} 34... Nh7 {[%clk 0:00:32.6]} 35. Bf3
{[%clk 0:00:34.1]} 35... Nhf6 {[%clk 0:00:32.8]} 36. Ra2 {[%clk 0:00:31.3]}
36... Rca8 {[%clk 0:00:32.4]} 37. Nb1 {[%clk 0:00:31.3]} 37... Ne3 {[%clk
0:00:28.2]} 38. Re1 {[%clk 0:00:24.4]} 38... Neg4 {[%clk 0:00:24.1]} 39. Nec3
{[%clk 0:00:22.2]} 39... Kf8 {[%clk 0:00:23]} 40. Rd2 {[%clk 0:00:20]} 40... Ke7
{[%clk 0:00:23.2]} 41. Bd1 {[%clk 0:00:16.9]} 41... g6 {[%clk 0:00:21.1]} 42.
Bc2 {[%clk 0:00:14]} 42... gxf5 {[%clk 0:00:19.6]} 43. exf5 {[%clk 0:00:14.5]}
43... Be8 {[%clk 0:00:18.1]} 44. Ne4 {[%clk 0:00:11.6]} 44... Nxe4 {[%clk
0:00:17.6]} 45. Rxe4 {[%clk 0:00:12.5]} 45... Nf6 {[%clk 0:00:18.3]} 46. Re1
{[%clk 0:00:12.3]} 46... Kd8 {[%clk 0:00:18.6]} 47. Kf2 {[%clk 0:00:11.2]} 47...
Kc7 {[%clk 0:00:18.7]} 48. Kf3 {[%clk 0:00:11.6]} 48... Bd7 {[%clk 0:00:19.4]}
49. Re3 {[%clk 0:00:08.4]} 49... Rg8 {[%clk 0:00:19.3]} 50. Re1 {[%clk
0:00:06.9]} 50... Rg4 {[%clk 0:00:19]} 51. Ree2 {[%clk 0:00:03.8]} 51... Ra8
{[%clk 0:00:18.9]} 52. Rg2 {[%clk 0:00:02.8]} 52... Rag8 {[%clk 0:00:19.3]} 53.
Nc3 {[%clk 0:00:02.9]} 53... e4+ {[%clk 0:00:17.4]} 54. Kf2 {[%clk 0:00:02.5]}
54... Bxf5 {[%clk 0:00:17]} 55. Re2 {[%clk 0:00:02.1]} 55... e3+ {[%clk
0:00:16.7]} 56. Kxe3 {[%clk 0:00:02.6]} 56... Bxc2 {[%clk 0:00:16.8]} 57. Rxc2
{[%clk 0:00:02.2]} 57... Rxg3+ {[%clk 0:00:15.5]} 58. Rxg3 {[%clk 0:00:02.7]}
58... Rxg3+ {[%clk 0:00:16.3]} 59. Kf4 {[%clk 0:00:02.8]} 59... Rg4+ {[%clk
0:00:16.3]} 60. Kf5 {[%clk 0:00:03.3]} 60... Nd7 {[%clk 0:00:15.4]} 61. Nxb5+
{[%clk 0:00:03.7]} 61... Kd8 {[%clk 0:00:14.9]} 62. Nxd6 {[%clk 0:00:04.1]}
62... Rxh4 {[%clk 0:00:14.3]} 63. Nxf7+ {[%clk 0:00:04.5]} 63... Ke7 {[%clk
0:00:14.6]} 64. Ng5 {[%clk 0:00:04.8]} 64... Rh1 {[%clk 0:00:12.4]} 65. Rxc4
{[%clk 0:00:04.6]} 65... h4 {[%clk 0:00:11.9]} 66. Re4+ {[%clk 0:00:04.2]} 66...
Kd6 {[%clk 0:00:11.6]} 67. Nf7+ {[%clk 0:00:03]} 67... Kc7 {[%clk 0:00:11.7]}
68. d6+ {[%clk 0:00:03.6]} 68... Kc6 {[%clk 0:00:11.2]} 69. Rc4+ {[%clk
0:00:03.7]} 69... Kd5 {[%clk 0:00:11.5]} 70. Rc7 {[%clk 0:00:03.9]} 70... Rf1+
{[%clk 0:00:11.2]} 71. Kg6 {[%clk 0:00:04.3]} 71... Ke6 {[%clk 0:00:09.2]} 72.
Ng5+ {[%clk 0:00:03.8]} 72... Kxd6 {[%clk 0:00:09.2]} 73. Rc3 {[%clk 0:00:03.8]}
73... h3 {[%clk 0:00:08.7]} 74. Rxh3 {[%clk 0:00:03.4]} 74... Rg1 {[%clk
0:00:08.5]} 75. Rd3+ {[%clk 0:00:03.4]} 75... Ke7 {[%clk 0:00:08.5]} 76. Kf5
{[%clk 0:00:03.6]} 76... Rf1+ {[%clk 0:00:07.7]} 77. Nf3 {[%clk 0:00:04]} 77...
Ra1 {[%clk 0:00:07]} 78. Ke4 {[%clk 0:00:04]} 78... Ke6 {[%clk 0:00:06]} 79.
Nd4+ {[%clk 0:00:04.1]} 79... Ke7 {[%clk 0:00:05.9]} 80. Nc6+ {[%clk 0:00:04.4]}
80... Ke6 {[%clk 0:00:06.4]} 81. Nd8+ {[%clk 0:00:04.3]} 81... Ke7 {[%clk
0:00:06.5]} 82. Nb7 {[%clk 0:00:04.7]} 82... Nb6 {[%clk 0:00:05.7]} 83. Nc5
{[%clk 0:00:04]} 83... Nc4 {[%clk 0:00:05.2]} 84. a4 {[%clk 0:00:03.5]} 84...
Rb1 {[%clk 0:00:04]} 85. b5 {[%clk 0:00:03.1]} 85... Nd6+ {[%clk 0:00:03.6]} 86.
Kd5 {[%clk 0:00:03.3]} 86... Rb4 {[%clk 0:00:01.8]} 87. Re3+ {[%clk 0:00:03.5]}
1-0

[Event "Early-Titled-Tuesday-Blitz-January-16-2024"]
[Site "Chess.com"]
[Date "2024.01.16"]
[Round "10"]
[White "djano"]
[Black "Matrix3x3a"]
[Result "1-0"]
[WhiteElo "2640"]
[BlackElo "2461"]
[TimeControl "180+1"]
[EndTime "9:52:58 PST"]
[Termination "djano won by resignation"]

1. e4 {[%clk 0:03:00.9]} 1... c5 {[%clk 0:02:57.4]} 2. Nc3 {[%clk 0:03:00.6]}
2... d6 {[%clk 0:02:55.8]} 3. f4 {[%clk 0:03:00.6]} 3... g6 {[%clk 0:02:54.5]}
4. Nf3 {[%clk 0:03:01]} 4... Bg7 {[%clk 0:02:54.3]} 5. Bc4 {[%clk 0:03:01.6]}
5... Nc6 {[%clk 0:02:54.4]} 6. O-O {[%clk 0:03:01.7]} 6... e6 {[%clk 0:02:52.5]}
7. d4 {[%clk 0:03:00.7]} 7... cxd4 {[%clk 0:02:52.3]} 8. Nb5 {[%clk 0:03:00.9]}
8... Nge7 {[%clk 0:02:48]} 9. Bb3 {[%clk 0:03:00.3]} 9... O-O {[%clk 0:02:47.6]}
10. Nbxd4 {[%clk 0:03:00.7]} 10... Nxd4 {[%clk 0:02:47.4]} 11. Nxd4 {[%clk
0:03:01.6]} 11... a6 {[%clk 0:02:47.3]} 12. c3 {[%clk 0:02:56.7]} 12... Nc6
{[%clk 0:02:46.7]} 13. Be3 {[%clk 0:02:50.3]} 13... Nxd4 {[%clk 0:02:45.7]} 14.
Bxd4 {[%clk 0:02:48.3]} 14... e5 {[%clk 0:02:41.5]} 15. fxe5 {[%clk 0:02:40.2]}
15... Be6 {[%clk 0:02:30.2]} 16. Bxe6 {[%clk 0:02:31.5]} 16... fxe6 {[%clk
0:02:31.1]} 17. Rxf8+ {[%clk 0:02:22.5]} 17... Qxf8 {[%clk 0:02:23.4]} 18. exd6
{[%clk 0:02:20.4]} 18... e5 {[%clk 0:02:15.3]} 19. Bc5 {[%clk 0:02:20.6]} 19...
Rd8 {[%clk 0:02:14.2]} 20. Qd5+ {[%clk 0:02:18]} 20... Qf7 {[%clk 0:02:13.3]}
1-0

[Event "Early-Titled-Tuesday-Blitz-January-16-2024"]
[Site "Chess.com"]
[Date "2024.01.16"]
[Round "10"]
[White "BelyakovBogdan"]
[Black "Roman_Ovetchkin"]
[Result "0-1"]
[WhiteElo "2501"]
[BlackElo "2665"]
[TimeControl "180+1"]
[EndTime "9:53:35 PST"]
[Termination "Roman_Ovetchkin won by resignation"]

1. e4 {[%clk 0:02:59.8]} 1... Nc6 {[%clk 0:02:59.8]} 2. Nf3 {[%clk 0:02:59.4]}
2... d5 {[%clk 0:02:59.9]} 3. exd5 {[%clk 0:02:59.3]} 3... Qxd5 {[%clk
0:03:00.8]} 4. Nc3 {[%clk 0:02:58.7]} 4... Qh5 {[%clk 0:03:00.7]} 5. Bb5 {[%clk
0:02:58]} 5... Bg4 {[%clk 0:02:58]} 6. Bxc6+ {[%clk 0:02:51.9]} 6... bxc6 {[%clk
0:02:57.6]} 7. d4 {[%clk 0:02:50.7]} 7... e6 {[%clk 0:02:56.5]} 8. Qe2 {[%clk
0:02:48.8]} 8... Bd6 {[%clk 0:02:53.4]} 9. Be3 {[%clk 0:02:45.8]} 9... Ne7
{[%clk 0:02:51.5]} 10. O-O-O {[%clk 0:02:45.4]} 10... O-O {[%clk 0:02:39.2]} 11.
h3 {[%clk 0:02:43.7]} 11... Bxf3 {[%clk 0:02:37.4]} 12. gxf3 {[%clk 0:02:44.6]}
12... Rab8 {[%clk 0:02:28.7]} 13. Rhg1 {[%clk 0:02:44.1]} 13... Qa5 {[%clk
0:02:26.5]} 14. Rg5 {[%clk 0:02:37.6]} 14... Qb4 {[%clk 0:02:17.2]} 15. Kd2
{[%clk 0:02:20.4]} 15... Qxb2 {[%clk 0:02:14.9]} 16. Rb1 {[%clk 0:02:18.9]}
16... Qa3 {[%clk 0:02:13.5]} 17. Rb3 {[%clk 0:02:05.9]} 17... Rxb3 {[%clk
0:02:10]} 18. axb3 {[%clk 0:02:06.8]} 18... Bb4 {[%clk 0:02:08.3]} 19. Qc4
{[%clk 0:02:02.8]} 19... Nd5 {[%clk 0:02:03.9]} 20. Rxd5 {[%clk 0:02:02]} 20...
cxd5 {[%clk 0:02:01.8]} 21. Qc6 {[%clk 0:02:02.9]} 21... Qa5 {[%clk 0:01:59.3]}
0-1

[Event "Early-Titled-Tuesday-Blitz-January-16-2024"]
[Site "Chess.com"]
[Date "2024.01.16"]
[Round "10"]
[White "AttilaTurzo"]
[Black "Kostukov_Alex"]
[Result "1-0"]
[WhiteElo "2490"]
[BlackElo "2315"]
[TimeControl "180+1"]
[EndTime "9:53:58 PST"]
[Termination "AttilaTurzo won by resignation"]

1. d4 {[%clk 0:03:00.9]} 1... g6 {[%clk 0:02:59.8]} 2. e4 {[%clk 0:02:57.4]}
2... Bg7 {[%clk 0:02:59]} 3. c3 {[%clk 0:02:57.8]} 3... c5 {[%clk 0:02:58.1]} 4.
dxc5 {[%clk 0:02:57.1]} 4... Qc7 {[%clk 0:02:48]} 5. Be3 {[%clk 0:02:56.2]} 5...
Nf6 {[%clk 0:02:42.1]} 6. Bd3 {[%clk 0:02:45.2]} 6... Na6 {[%clk 0:02:30.6]} 7.
Bxa6 {[%clk 0:02:44.2]} 7... bxa6 {[%clk 0:02:31.5]} 8. Nd2 {[%clk 0:02:42.1]}
8... Rb8 {[%clk 0:02:29.5]} 9. b4 {[%clk 0:02:14.4]} 9... Ng4 {[%clk 0:02:20.4]}
10. Qxg4 {[%clk 0:02:11.4]} 10... Bxc3 {[%clk 0:02:18.6]} 11. Rc1 {[%clk
0:02:09.4]} 11... Bxb4 {[%clk 0:02:14.1]} 12. Ne2 {[%clk 0:01:56.5]} 12... Qa5
{[%clk 0:02:04.4]} 13. Qf4 {[%clk 0:01:44.1]} 13... Qxa2 {[%clk 0:01:47.4]} 14.
Qxb8 {[%clk 0:01:39.8]} 14... O-O {[%clk 0:01:42.8]} 15. Qxb4 {[%clk 0:01:38.3]}
1-0

[Event "Early-Titled-Tuesday-Blitz-January-16-2024"]
[Site "Chess.com"]
[Date "2024.01.16"]
[Round "10"]
[White "GMRAVEN_ON_YOUTUBE"]
[Black "azikom"]
[Result "0-1"]
[WhiteElo "2810"]
[BlackElo "2709"]
[TimeControl "180+1"]
[EndTime "9:54:05 PST"]
[Termination "azikom won by resignation"]

1. f4 {[%clk 0:03:00.9]} 1... d5 {[%clk 0:02:59.1]} 2. Nf3 {[%clk 0:03:01]} 2...
Nf6 {[%clk 0:02:59.7]} 3. e3 {[%clk 0:03:01.7]} 3... g6 {[%clk 0:03:00.1]} 4. b3
{[%clk 0:03:02.2]} 4... Bg7 {[%clk 0:03:01]} 5. Bb2 {[%clk 0:03:02.9]} 5... O-O
{[%clk 0:03:01.5]} 6. Be2 {[%clk 0:03:03.6]} 6... c5 {[%clk 0:03:01.4]} 7. O-O
{[%clk 0:03:04.3]} 7... b6 {[%clk 0:03:01.7]} 8. Ne5 {[%clk 0:03:03.9]} 8... Bb7
{[%clk 0:03:01.6]} 9. Bf3 {[%clk 0:03:04.5]} 9... e6 {[%clk 0:02:59.4]} 10. d3
{[%clk 0:03:03.9]} 10... Nc6 {[%clk 0:02:58.5]} 11. Nd2 {[%clk 0:03:01]} 11...
Rc8 {[%clk 0:02:57]} 12. Qe2 {[%clk 0:02:58.7]} 12... Nxe5 {[%clk 0:02:48.5]}
13. fxe5 {[%clk 0:02:59.6]} 13... Nd7 {[%clk 0:02:47.9]} 14. Nc4 {[%clk
0:02:47.9]} 14... dxc4 {[%clk 0:02:46]} 15. Bxb7 {[%clk 0:02:47.4]} 15... Rc7
{[%clk 0:02:40.8]} 16. Ba6 {[%clk 0:02:46.8]} 16... cxd3 {[%clk 0:02:39]} 17.
cxd3 {[%clk 0:02:47.1]} 17... Nxe5 {[%clk 0:02:38]} 18. d4 {[%clk 0:02:45.9]}
18... cxd4 {[%clk 0:02:34.5]} 19. exd4 {[%clk 0:02:46.8]} 19... Nc6 {[%clk
0:02:34.4]} 20. Rad1 {[%clk 0:02:46.9]} 20... Rd7 {[%clk 0:02:31.6]} 21. Kh1
{[%clk 0:02:24.1]} 21... Nxd4 {[%clk 0:02:30.3]} 22. Qd2 {[%clk 0:02:17]} 22...
Qe7 {[%clk 0:02:12.9]} 23. Bb5 {[%clk 0:02:12.8]} 23... Rdd8 {[%clk 0:02:10.9]}
24. Bc4 {[%clk 0:02:12.3]} 24... Nxb3 {[%clk 0:01:57.2]} 25. Qc2 {[%clk
0:02:08.8]} 25... Bxb2 {[%clk 0:01:47]} 26. Qxb2 {[%clk 0:02:07.1]} 26... Nc5
{[%clk 0:01:45.7]} 27. Rde1 {[%clk 0:02:05]} 27... Nd3 {[%clk 0:01:40.8]} 0-1

[Event "Early-Titled-Tuesday-Blitz-January-16-2024"]
[Site "Chess.com"]
[Date "2024.01.16"]
[Round "10"]
[White "adotand"]
[Black "jinbojinbo"]
[Result "1-0"]
[WhiteElo "2870"]
[BlackElo "2651"]
[TimeControl "180+1"]
[EndTime "9:54:39 PST"]
[Termination "adotand won by resignation"]

1. Nf3 {[%clk 0:03:00.9]} 1... Nf6 {[%clk 0:02:59.8]} 2. c4 {[%clk 0:03:00.6]}
2... e6 {[%clk 0:02:58.3]} 3. e3 {[%clk 0:03:01.5]} 3... d5 {[%clk 0:02:58.1]}
4. d4 {[%clk 0:03:02.2]} 4... Be7 {[%clk 0:02:56.7]} 5. Nc3 {[%clk 0:03:02]}
5... O-O {[%clk 0:02:56.2]} 6. Be2 {[%clk 0:03:02.7]} 6... dxc4 {[%clk 0:02:56]}
7. Bxc4 {[%clk 0:03:03.6]} 7... c5 {[%clk 0:02:56.2]} 8. O-O {[%clk 0:03:03.6]}
8... Nc6 {[%clk 0:02:56]} 9. a3 {[%clk 0:02:58.3]} 9... cxd4 {[%clk 0:02:53.4]}
10. exd4 {[%clk 0:02:58.5]} 10... b6 {[%clk 0:02:49.9]} 11. Bg5 {[%clk
0:02:57.5]} 11... Bb7 {[%clk 0:02:49.2]} 12. Qd3 {[%clk 0:02:57.5]} 12... h6
{[%clk 0:02:37.8]} 13. Bh4 {[%clk 0:02:55.1]} 13... Nd5 {[%clk 0:02:25.8]} 14.
Bg3 {[%clk 0:02:53.9]} 14... Nxc3 {[%clk 0:02:22.5]} 15. bxc3 {[%clk 0:02:54.8]}
15... Bf6 {[%clk 0:02:21.2]} 16. Rad1 {[%clk 0:02:50.5]} 16... Rc8 {[%clk
0:02:17.7]} 17. Rfe1 {[%clk 0:02:49.3]} 17... Re8 {[%clk 0:02:17.1]} 18. Ba2
{[%clk 0:02:49.3]} 18... Ne7 {[%clk 0:02:14.5]} 19. Ne5 {[%clk 0:02:47.3]} 19...
Bd5 {[%clk 0:01:36.7]} 20. c4 {[%clk 0:02:47.4]} 20... Bb7 {[%clk 0:01:36.9]}
21. d5 {[%clk 0:02:47.9]} 21... Nf5 {[%clk 0:01:30.3]} 22. Nxf7 {[%clk 0:02:48]}
22... Kxf7 {[%clk 0:01:25.1]} 23. dxe6+ {[%clk 0:02:48.4]} 23... Rxe6 {[%clk
0:01:24.4]} 24. Qxf5 {[%clk 0:02:47.5]} 24... Rxe1+ {[%clk 0:01:15.2]} 25. Rxe1
{[%clk 0:02:47.6]} 25... Kf8 {[%clk 0:00:40]} 26. c5 {[%clk 0:02:45.4]} 26...
Rxc5 {[%clk 0:00:39]} 27. Qe6 {[%clk 0:02:45.4]} 27... Bd5 {[%clk 0:00:27.9]}
28. Bd6+ {[%clk 0:02:45.5]} 1-0

[Event "Early-Titled-Tuesday-Blitz-January-16-2024"]
[Site "Chess.com"]
[Date "2024.01.16"]
[Round "10"]
[White "RodokininEV"]
[Black "Talent-OF-Slovenia"]
[Result "1-0"]
[WhiteElo "2614"]
[BlackElo "2417"]
[TimeControl "180+1"]
[EndTime "9:54:39 PST"]
[Termination "RodokininEV won by checkmate"]

1. e4 {[%clk 0:03:00.9]} 1... c5 {[%clk 0:02:58]} 2. Nf3 {[%clk 0:03:00.8]} 2...
e6 {[%clk 0:02:58]} 3. d3 {[%clk 0:02:58]} 3... Nc6 {[%clk 0:02:54.9]} 4. Nbd2
{[%clk 0:02:58.9]} 4... d6 {[%clk 0:02:53.6]} 5. c3 {[%clk 0:02:57.8]} 5... Nf6
{[%clk 0:02:52]} 6. d4 {[%clk 0:02:56]} 6... cxd4 {[%clk 0:02:47.4]} 7. cxd4
{[%clk 0:02:56.9]} 7... Be7 {[%clk 0:02:43.5]} 8. Bd3 {[%clk 0:02:56.9]} 8...
O-O {[%clk 0:02:34.8]} 9. O-O {[%clk 0:02:55.5]} 9... Bd7 {[%clk 0:02:33]} 10.
a3 {[%clk 0:02:49.5]} 10... a6 {[%clk 0:02:30.6]} 11. Qe2 {[%clk 0:02:47.8]}
11... b5 {[%clk 0:02:29.6]} 12. e5 {[%clk 0:02:45.1]} 12... Nd5 {[%clk 0:02:29]}
13. Ne4 {[%clk 0:02:44.9]} 13... h6 {[%clk 0:02:26.1]} 14. exd6 {[%clk
0:02:42.9]} 14... Bf6 {[%clk 0:02:25]} 15. Be3 {[%clk 0:02:38.3]} 15... Rc8
{[%clk 0:01:57.6]} 16. Rac1 {[%clk 0:02:33.1]} 16... Re8 {[%clk 0:01:44.5]} 17.
Qd2 {[%clk 0:02:33]} 17... Na7 {[%clk 0:01:36.1]} 18. Ne5 {[%clk 0:02:30.3]}
18... Rxc1 {[%clk 0:01:21]} 19. Rxc1 {[%clk 0:02:29.8]} 19... Nc8 {[%clk
0:01:19.9]} 20. Bxh6 {[%clk 0:02:24.6]} 20... gxh6 {[%clk 0:01:13.8]} 21. Qxh6
{[%clk 0:02:25.5]} 21... Bg7 {[%clk 0:01:10.4]} 22. Qh7+ {[%clk 0:02:06.9]}
22... Kxh7 {[%clk 0:00:52.7]} 23. Nf6+ {[%clk 0:02:06.4]} 23... Kh6 {[%clk
0:00:50.2]} 24. Nxf7# {[%clk 0:02:06.8]} 1-0